Workbook

Sheet 指标分配方案
A1: 2021年度研究生企业奖学金、学习优秀奖学金指标分配方案
A2: 序号 | B2: 奖学金名称 | C2: 类型 | D2: 资助总额 | E2: 评选总指标 | F2: 资助 标准 | G2: 地球科学学院 | H2: 石油工程学院 | I2: 化学工程与环境学院 | J2: 机械与储运工程学院 | K2: 地球物理学院 | L2: 安全与海洋工程学院 | M2: 新能源与材料学院 | N2: 信息科学与工程学院 | O2: 理学院 | P2: 经济管理学院 | Q2: 马克思主义学院 | R2: 外国语学院 | S2: 非常规油气科学技术研究院 | T2: 评选条件 | U2: 报送材料 | V2: 备注
F3: 硕士参评人数 | G3: 235 | H3: 268 | I3: 243 | J3: 239 | K3: 111 | L3: 161 | M3: 140 | N3: 157 | O3: 109 | P3: 245 | Q3: 24 | R3: 84 | S3: 131 | T3: =SUM(G3:S3) -> 2147
F4: 博士参评人数 | G4: 50 | H4: 75 | I4: 56 | J4: 38 | K4: 34 | L4: 17 | M4: 17 | N4: 8 | O4: 16 | P4: 17 | Q4: 7 | S4: 15 | T4: =SUM(G4:S4) -> 350
F5: 参评总人数 | G5: =SUM(G3:G4) -> 285 | H5: =SUM(H3:H4) -> 343 | I5: =SUM(I3:I4) -> 299 | J5: =SUM(J3:J4) -> 277 | K5: =SUM(K3:K4) -> 145 | L5: 178 | M5: 157 | N5: 165 | O5: 125 | P5: 262 | Q5: 31 | R5: 84 | S5: 146 | T5: 2497
A6: 1 | B6: 中国石油奖学金 （基金会） | C6: 博士 | D6: =E6*F6 -> ¥18,000 | E6: 3 | F6: ¥6,000 | I6: 2 | J6: 1 | T6: 按照研究生手册上优秀研究生奖学金的评定标准进行评选。 1.全日制非定向档案到校； 2.处分未解除者不具备参评资格； 3.智育成绩排名和综合测评专业前30%； 4.创新能力强，论文在核心期刊发表，取得国家发明专利、获省部级以上大赛名次者优先。 | U6: 电子版：汇总表、申请表（见附件3） 纸质版：汇总表、申请表（两份，签名部分必须为手签，其他可打印）、感谢信（手写一份，1500-2000字） | V6: 石大红色横线信纸（首行居中：感谢信；第二行顶格：尊敬的中国石油天然气集团公司；第三行：首行缩进两字符后开始写正文；结尾此致敬礼+学院姓名日期落款）
C7: 硕士 | D7: =E7*F7 -> ¥72,000 | E7: 12 | F7: ¥6,000 | G7: 2 | J7: 3 | K7: 2 | N7: 2 | O7: 1 | Q7: 1 | S7: 1
A8: 2 | B8: 学习优秀奖学金 | C8: 博士 | D8: =E8*F8 -> ¥34,000 | E8: 17 | F8: ¥2,000 | G8: 3 | H8: 3 | I8: 2 | J8: 2 | K8: 2 | L8: 1 | M8: 1 | O8: 1 | P8: 1 | S8: 1 | T8: 1.全日制非定向档案到校 2.处分未解除者不具备参评资格 3.智育成绩排名专业前15%综合测评成绩排名专业前60% | U8: 纸质版和电子版汇总表 | V8: 按照学院学生实际情况进行评选，指标可以不用完
C9: 硕士 | D9: =E9*F9 -> ¥214,000 | E9: 107 | F9: ¥2,000 | G9: 12 | H9: 13 | I9: 12 | J9: 12 | K9: 6 | L9: 8 | M9: 7 | N9: 8 | O9: 5 | P9: 12 | Q9: 1 | R9: 4 | S9: 7
A10: 备注：由于设奖单位对获奖学生所在学院和专业的特殊要求，部分学院的获奖比例高于其他学院。

Sheet 学院定向奖学金
A1: 2021年度研究生企业奖学金、学习优秀奖学金指标分配方案（学院定向奖学金）
A2: 序号 | B2: 奖学金名称 | C2: 类型 | D2: 资助总额 | E2: 评选总指标 | F2: 资助 标准 | G2: 石油工程学院 | H2: 化学工程与环境学院 | I2: 信息学院 | J2: 经管学院 | K2: 评选条件 | L2: 报送材料 | M2: 备注
A3: 1 | B3: 沈平平奖学金 （石工学院定向） | C3: 博士 | D3: ¥5,000 | E3: 1 | F3: ¥5,000 | G3: 1 | K3: 石油工程学院定向奖学金，评选细则根据协议执行。 石油与天然气工程学科科研表现突出的硕士研究生1名，博士研究生1名，在三年级学生中评选。获奖学生须达到国家奖学金的评选标准，学习成绩优异,科研能力显著,发展潜力突出。研究生在学术上获得创新性成果，在国内外期刊上以第一作者身份发表过高水平论文，申请或获得授权发明专利；积极参加社会实践和科技创新活动，获市级以上奖励者优先；在提高原油采收率新理论、新方法、新技术方面成绩特别突出，并有相应的高水平学术论文或发明专利佐证，可以申请破格评选，由评审委员会开会讨论决定。 | L3: 电子版：汇总表（通用）、申请表、个人事迹 纸质版：汇总表、申请表、感谢信 | M3: 石大红色横线信纸（首行居中：感谢信；第二行顶格：尊敬的沈平平教授；第三行：首行缩进两字符后开始写正文；结尾此致敬礼+学院姓名日期落款）
C4: 硕士 | D4: ¥5,000 | E4: 1 | F4: ¥5,000 | G4: 1
A5: 2 | B5: 王鸿勋石油工程奖学金 （石工学院定向） | C5: 研究生 | D5: ¥10,000 | E5: 2 | F5: ¥5,000 | G5: 2 | K5: 石油工程学院定向奖学金，评选细则根据协议执行。 | L5: 电子版：汇总表（通用）、申请表、个人事迹 纸质版：汇总表、申请表、感谢信 | M5: 石大红色横线信纸（首行居中：感谢信；第二行顶格：尊敬的王鸿勋教授；第三行：首行缩进两字符后开始写正文；结尾此致敬礼+学院姓名日期落款）
A6: 3 | B6: 万华化学集团奖学金 （化工学院定向） | C6: 硕士 | D6: ¥20,000 | E6: 8 | F6: ¥2,500 | H6: 8 | K6: 化工学院定向奖学金，评选细则根据协议执行。 | L6: 电子版：汇总表（通用）、申请表、个人事迹 纸质版：汇总表、申请表、感谢信 | M6: 石大红色横线信纸（首行居中：感谢信；第二行顶格：尊敬的万华化学集团股份有限公司；第三行：首行缩进两字符后开始写正文；结尾此致敬礼+学院姓名日期落款）
A7: 4 | B7: 淄博热电集团奖学金（化工学院定向） | C7: 硕士二、三年级 博士三、四年级 | D7: ¥40,000 | E7: 10 | F7: ¥4,000 | H7: 10 | K7: 化工学院定向奖学金，评选细则根据协议执行。 | L7: 电子版：汇总表（通用）、申请表、个人事迹 纸质版：汇总表、申请表、感谢信 | M7: 石大红色横线信纸（首行居中：感谢信；第二行顶格：尊敬的山东淄博热电集团有限公司；第三行：首行缩进两字符后开始写正文；结尾此致敬礼+学院姓名日期落款）
A8: 5 | B8: 赛思科技奖学金（信息学院定向） | C8: 博士 | D8: ¥4,000 | E8: 2 | F8: ¥2,000 | I8: 2 | K8: 信息科学与工程学院定向奖学金。 | L8: 电子版：汇总表（通用）、申请表、个人事迹 纸质版：汇总表、申请表、感谢信 | M8: 石大红色横线信纸（首行居中：感谢信；第二行顶格：尊敬的赛思科技（西安）有限公司；第三行：首行缩进两字符后开始写正文；结尾此致敬礼+学院姓名日期落款）
C9: 硕士 | D9: ¥6,000 | E9: 3 | F9: ¥2,000 | I9: 3
A10: 6 | B10: 大连期货奖学金（经管学院定向） | C10: 2020级MBA | D10: ¥20,000 | E10: 12 | F10: 一等：总人数10%，总奖金7500元； 二等：总人数20%，总奖金8000元； 三等：总人数20%，总奖金4500元。 | J10: 12 | K10: 经管学院定向奖学金，奖励我校经济管理学院与格林大华联合举办的2021年“期货高效人才培训班”中品学兼优、综合素质好，在培训课程中表现优异的2020级MBA班学生。 | L10: 等待通知进行评选
